bitfinex/quotes_BTCUSD_20241211
["timestamp","ask_amount","ask_price","bid_price","bid_amount"]
[1733943347569,0.71730674,100470.0,100450.0,0.079635]
[1733943347799,0.72230674,100470.0,100450.0,0.159273]
[1733943348068,0.51822774,100470.0,100450.0,0.23891]
[1733943348280,0.71730374,100470.0,100450.0,0.159272]
[1733943348546,0.52022774,100470.0,100450.0,0.159272]
[1733943349280,0.61184377,100460.0,100440.0,8.61e-05]
[1733943349535,0.199104,100450.0,100440.0,8.61e-05]
[1733943349752,0.29941245,100450.0,100440.0,8.61e-05]
[1733943351083,0.29941245,100450.0,100440.0,0.0030861]
[1733943351330,0.56275377,100450.0,100440.0,0.0030861]
[1733943351571,0.83199923,100450.0,100440.0,0.0050861]
[1733943352289,0.83199923,100450.0,100440.0,0.0030861]
[1733943352993,0.58516914,100450.0,100440.0,0.0030861]
[1733943353217,0.71875418,100450.0,100440.0,8.61e-05]
[1733943353443,0.72375418,100450.0,100440.0,8.61e-05]
[1733943353759,0.72575418,100450.0,100440.0,8.61e-05]
[1733943353851,0.59216914,100450.0,100440.0,8.61e-05]
[1733943355327,0.50311245,100450.0,100440.0,8.61e-05]
[1733943356087,0.59216914,100450.0,100440.0,8.61e-05]
[1733943356314,0.50311245,100450.0,100440.0,8.61e-05]
[1733943356767,0.52276621,100450.0,100440.0,8.61e-05]
[1733943357975,0.47606621,100450.0,100440.0,8.61e-05]
[1733943358201,0.49547759,100450.0,100440.0,8.61e-05]
[1733943365442,0.49846492,100450.0,100440.0,8.61e-05]
[1733943366535,0.62456492,100450.0,100440.0,8.61e-05]
[1733943369317,0.71353651,100450.0,100440.0,8.61e-05]
[1733943370231,0.63303651,100450.0,100440.0,8.61e-05]
[1733943370914,0.63320851,100450.0,100440.0,8.61e-05]
[1733943371371,0.76666589,100450.0,100440.0,8.61e-05]
[1733943372320,0.94460907,100450.0,100440.0,8.61e-05]
[1733943373475,1.16703805,100450.0,100440.0,8.61e-05]
[1733943376300,1.07806646,100450.0,100440.0,8.61e-05]
[1733943378601,0.68037513,100450.0,100440.0,0.0797351]
[1733943378858,0.76970475,100450.0,100440.0,0.0797351]
[1733943379110,0.96880875,100450.0,100440.0,8.61e-05]
[1733943379342,0.96880875,100450.0,100440.0,0.0797351]
[1733943380267,0.74637977,100450.0,100440.0,0.0797351]
[1733943381486,0.96880875,100450.0,100440.0,0.0797351]
[1733943382400,0.97102758,100450.0,100440.0,0.0797351]
[1733943384647,0.97102758,100450.0,100440.0,8.61e-05]
[1733943384900,0.7476783,100450.0,100440.0,0.0797351]
[1733943385098,0.7514893,100450.0,100440.0,0.0797351]
[1733943385328,0.57280987,100450.0,100440.0,0.0797351]
[1733943386235,0.57280987,100450.0,100440.0,8.61e-05]
[1733943388618,0.7514893,100450.0,100440.0,8.61e-05]
[1733943389150,0.57280987,100450.0,100440.0,8.61e-05]
[1733943389600,0.57280987,100450.0,100440.0,0.0797351]
[1733943390500,0.7514893,100450.0,100440.0,0.0797351]
[1733943394096,0.75148732,100450.0,100440.0,8.61e-05]
[1733943394364,1.09732677,100450.0,100440.0,8.61e-05]
[1733943394605,0.87397749,100450.0,100440.0,8.61e-05]
[1733943394843,0.95950818,100450.0,100440.0,8.61e-05]
[1733943395073,0.98250818,100450.0,100440.0,8.61e-05]
[1733943395316,0.79842733,100450.0,100440.0,8.61e-05]
[1733943395538,0.78342733,100450.0,100440.0,8.61e-05]
[1733943396246,0.1141586,100430.0,100420.0,8.6e-05]
[1733943396468,0.56784665,100430.0,100420.0,8.6e-05]
[1733943396679,0.70187401,100430.0,100420.0,8.6e-05]
[1733943396955,0.70187402,100430.0,100420.0,8.6e-05]
[1733943397642,0.83598114,100430.0,100420.0,0.00263425]
[1733943397860,0.70187402,100430.0,100420.0,0.00263425]
[1733943398075,0.83598492,100430.0,100420.0,0.00263425]
[1733943399042,0.83598492,100430.0,100420.0,0.00563425]
[1733943399043,0.70187402,100430.0,100420.0,0.00563425]
[1733943399694,0.83592873,100430.0,100420.0,0.00563425]
[1733943400187,0.70187402,100430.0,100420.0,0.00563425]
[1733943400409,1.03443262,100430.0,100420.0,0.00563425]
[1733943400624,1.03427641,100430.0,100420.0,0.00563425]
[1733943400841,0.85557814,100430.0,100420.0,0.00563425]
[1733943401315,0.85557814,100430.0,100420.0,0.00363425]
[1733943401553,0.87548176,100430.0,100420.0,0.00363425]
[1733943401790,1.05417784,100430.0,100420.0,0.00363425]
[1733943402249,1.05417784,100430.0,100410.0,0.01535]
[1733943402250,0.199163,100420.0,100410.0,0.01535]
[1733943402489,0.199163,100420.0,100380.0,0.015]
[1733943402490,0.349223,100390.0,100380.0,0.015]
[1733943402704,0.6777861,100390.0,100360.0,8.6e-05]
[1733943402953,0.6777861,100390.0,100380.0,0.00016442]
[1733943402954,0.22327665,100390.0,100380.0,0.00016442]
[1733943403170,0.22327665,100390.0,100380.0,0.07986142]
[1733943403171,0.08931066,100390.0,100380.0,0.07986142]
[1733943403383,0.598386,100410.0,100390.0,0.079688]
[1733943403636,0.399192,100410.0,100390.0,0.159373]
[1733943403855,0.399192,100410.0,100400.0,0.0792]
[1733943404070,0.61783091,100410.0,100390.0,0.0822]
[1733943404285,0.50184126,100400.0,100380.0,0.12776442]
[1733943404524,0.199223,100390.0,100380.0,0.08236442]
[1733943404742,0.4224431,100390.0,100380.0,0.08236442]
[1733943405015,0.73495124,100390.0,100380.0,0.08236442]
[1733943405275,0.60601918,100390.0,100380.0,0.08236442]
[1733943405520,0.199249,100380.0,100360.0,0.288102]
[1733943405770,0.82382094,100380.0,100360.0,0.367976]
[1733943405991,1.06769622,100380.0,100360.0,0.242667]
[1733943406232,1.02308531,100380.0,100360.0,0.242667]
[1733943406736,1.12339376,100380.0,100360.0,0.162958]
[1733943406980,1.12339676,100380.0,100360.0,0.086251]
[1733943407224,0.92414176,100380.0,100360.0,0.242667]
[1733943407491,0.40152298,100370.0,100360.0,0.083251]
[1733943407713,0.28848933,100370.0,100360.0,0.083251]
[1733943407964,0.42233032,100370.0,100360.0,0.083251]
[1733943408425,0.52263877,100370.0,100360.0,0.000251]
[1733943408656,0.38879778,100370.0,100360.0,0.000251]
[1733943408891,0.38879778,100370.0,100360.0,0.002251]
[1733943409140,0.29957045,100370.0,100360.0,0.005251]
[1733943409824,0.199282,100360.0,100350.0,0.0504861]
[1733943410068,0.29959045,100360.0,100350.0,0.05054111]
[1733943410308,0.38856921,100360.0,100350.0,0.05054111]
[1733943410531,0.38856656,100360.0,100350.0,0.05054111]
[1733943411485,0.52203073,100360.0,100350.0,0.05054111]
[1733943412194,0.64035224,100370.0,100360.0,0.079713]
[1733943412457,0.01751944,100370.0,100360.0,0.079713]
[1733943412905,0.28897611,100380.0,100360.0,0.159415]
[1733943413117,0.99809551,100390.0,100370.0,0.079705]
[1733943413340,0.89916796,100390.0,100370.0,0.235209]
[1733943413569,1.09840596,100390.0,100370.0,0.155504]
[1733943413831,0.92045373,100390.0,100370.0,0.155504]
[1733943414066,0.93879928,100390.0,100370.0,0.155504]
[1733943414337,0.199274,100370.0,100350.0,0.25765411]
[1733943414585,0.199264,100370.0,100350.0,0.33737511]
[1733943414801,0.199264,100370.0,100350.0,0.33737211]
[1733943415024,0.398534,100370.0,100350.0,0.41708711]
[1733943415253,0.398534,100370.0,100350.0,0.33737011]
[1733943415468,0.398534,100370.0,100350.0,0.41709011]
[1733943415682,0.199264,100370.0,100360.0,0.079713]
[1733943416373,0.199264,100370.0,100350.0,0.41708711]
[1733943416636,0.400537,100370.0,100350.0,0.33737211]
[1733943417102,0.402537,100370.0,100350.0,0.33737211]
[1733943417347,0.398537,100370.0,100350.0,0.33737211]
[1733943417846,0.400537,100370.0,100350.0,0.25765811]
[1733943418059,0.400537,100370.0,100350.0,0.33737511]
[1733943419049,0.400537,100370.0,100350.0,0.41709111]
[1733943419378,0.41891075,100370.0,100350.0,0.41709111]
[1733943420056,0.02037375,100370.0,100360.0,0.079713]
[1733943420283,0.02037375,100370.0,100350.0,0.29217065]
[1733943420284,0.21963575,100370.0,100350.0,0.29217065]
[1733943420555,0.21963575,100370.0,100350.0,0.37188765]
[1733943421019,0.21963575,100370.0,100360.0,0.079713]
[1733943421715,0.02037375,100370.0,100360.0,0.079713]
[1733943421956,0.01837375,100370.0,100360.0,0.1613094]
[1733943422217,0.02037375,100370.0,100360.0,0.1613094]
[1733943422468,0.002,100370.0,100360.0,0.1613094]
[1733943422988,0.004,100370.0,100360.0,0.41161785]
[1733943423230,1.02508788,100400.0,100360.0,0.41262145]
[1733943423461,0.00311122,100390.0,100380.0,0.161995]
[1733943423690,0.70070096,100400.0,100390.0,0.079689]
[1733943423939,0.52274873,100400.0,100390.0,0.079689]
[1733943424179,0.08897611,100400.0,100390.0,0.079689]
[1733943424415,0.59957651,100410.0,100390.0,0.159374]
[1733943424643,0.29949245,100410.0,100400.0,0.079681]
[1733943424864,0.29949245,100410.0,100400.0,5.501e-05]
[1733943425100,0.10030845,100410.0,100400.0,5.501e-05]
[1733943425341,0.29949145,100410.0,100400.0,5.501e-05]
[1733943425799,0.31717703,100410.0,100400.0,5.501e-05]
[1733943426267,0.40915314,100410.0,100400.0,5.501e-05]
[1733943426487,0.84072814,100410.0,100400.0,5.501e-05]
[1733943426738,0.97419232,100410.0,100400.0,5.501e-05]
[1733943426982,0.94868774,100410.0,100400.0,5.501e-05]
[1733943427224,0.72511256,100410.0,100400.0,5.501e-05]
[1733943427466,0.41482937,100410.0,100400.0,5.501e-05]
[1733943428974,0.41482937,100410.0,100400.0,0.07973601]
[1733943429187,0.11550992,100410.0,100400.0,0.07973601]
[1733943429407,0.11552949,100410.0,100400.0,0.07973601]
[1733943429906,0.02685758,100410.0,100400.0,0.07973601]
[1733943430392,0.02685758,100410.0,100400.0,0.15683199]
[1733943430628,0.02685758,100410.0,100400.0,0.15683185]
[1733943431792,0.02385758,100410.0,100400.0,0.4071403]
[1733943432013,0.02385758,100410.0,100400.0,0.40614446]
[1733943432700,0.01785758,100410.0,100400.0,0.40614446]
[1733943433395,0.01985758,100410.0,100400.0,0.40614446]
[1733943433822,0.002172,100410.0,100400.0,0.70614446]
[1733943434519,0.002172,100410.0,100400.0,0.77604446]
[1733943435160,0.002172,100410.0,100400.0,0.78004446]
[1733943435901,0.000172,100410.0,100400.0,0.77604446]
[1733943436154,0.002172,100410.0,100400.0,0.46104446]
[1733943437479,0.002172,100410.0,100400.0,0.61104446]
[1733943440978,0.002172,100410.0,100400.0,0.46104446]
[1733943441214,0.002172,100410.0,100400.0,0.61104446]
[1733943447119,0.276555,100410.0,100400.0,0.00805501]
[1733943447365,0.276555,100410.0,100380.0,0.079693]
[1733943447366,0.199209,100400.0,100380.0,0.079693]
[1733943447625,0.199209,100400.0,100380.0,0.23924165]
[1733943447843,0.398423,100400.0,100380.0,0.15954865]
[1733943448114,0.398423,100400.0,100380.0,0.15954965]
[1733943448115,0.49873145,100400.0,100380.0,0.15954965]
[1733943448357,0.58751253,100400.0,100380.0,0.15954865]
[1733943448569,0.69794545,100400.0,100380.0,0.15954865]
[1733943449037,0.49873145,100400.0,100380.0,0.23924165]
[1733943449272,0.49873145,100400.0,100380.0,0.07985565]
[1733943449516,0.91991773,100400.0,100380.0,0.08185565]
[1733943449784,0.91991773,100400.0,100380.0,0.08385565]
[1733943450021,0.91991773,100400.0,100380.0,0.16355265]
[1733943450688,0.58751876,100400.0,100380.0,0.16355265]
[1733943450922,0.78673376,100400.0,100380.0,0.16355265]
[1733943451170,0.58751876,100400.0,100380.0,0.16355265]
[1733943451396,0.78673376,100400.0,100380.0,0.08385565]
[1733943451622,0.38830476,100400.0,100380.0,0.16354865]
[1733943451890,0.58751676,100400.0,100380.0,0.16354865]
[1733943452124,0.58751676,100400.0,100380.0,0.24324165]
[1733943452341,0.58751676,100400.0,100380.0,0.16354865]
[1733943452560,0.00311098,100390.0,100380.0,0.08385565]
[1733943452818,0.78673176,100400.0,100380.0,0.16354965]
[1733943453061,0.00311098,100390.0,100380.0,0.08385565]
[1733943453266,0.49872945,100400.0,100380.0,0.16355165]
[1733943453489,0.29951745,100400.0,100380.0,0.24324465]
[1733943453760,0.49872845,100400.0,100380.0,0.24324465]
[1733943454660,1.35902536,100410.0,100390.0,0.079689]
[1733943454922,0.00311086,100400.0,100390.0,0.079689]
[1733943455148,0.398415,100400.0,100380.0,0.16154765]
[1733943455585,0.398415,100400.0,100380.0,0.24124065]
[1733943455824,0.398415,100400.0,100380.0,0.23924065]
[1733943457728,0.199203,100400.0,100390.0,0.079689]
[1733943458208,0.199203,100400.0,100380.0,0.23924065]
[1733943459753,0.28811842,100400.0,100380.0,0.23924065]
[1733943460458,0.53359702,100390.0,100380.0,0.00016465]
[1733943460702,0.94510944,100390.0,100380.0,0.00016465]
[1733943460953,0.87919402,100390.0,100380.0,0.00016465]
[1733943461176,1.19044163,100390.0,100380.0,0.00016465]
[1733943461398,0.96815308,100390.0,100380.0,0.00016465]
[1733943461621,1.19044163,100390.0,100380.0,0.00016465]
[1733943462108,1.19944163,100390.0,100380.0,0.00016465]
[1733943462595,1.11048257,100390.0,100380.0,0.00016465]
[1733943463048,0.199262,100370.0,100360.0,8.6e-05]
[1733943463283,0.28824582,100370.0,100360.0,8.6e-05]
[1733943463511,0.78708861,100370.0,100360.0,8.6e-05]
[1733943463734,0.96505626,100370.0,100360.0,8.6e-05]
[1733943464269,1.18751583,100370.0,100360.0,8.6e-05]
[1733943464510,0.96505626,100370.0,100360.0,8.6e-05]
[1733943464729,1.18751583,100370.0,100360.0,8.6e-05]
[1733943465456,0.96505626,100370.0,100360.0,8.6e-05]
[1733943465937,1.18751583,100370.0,100360.0,8.6e-05]
[1733943466421,0.96505626,100370.0,100360.0,8.6e-05]
[1733943466641,0.96505627,100370.0,100360.0,8.6e-05]
[1733943466904,0.78708862,100370.0,100360.0,8.6e-05]
[1733943467334,1.05383488,100370.0,100360.0,8.6e-05]
[1733943468083,0.91667628,100370.0,100360.0,8.6e-05]
[1733943468305,0.92567628,100370.0,100360.0,8.6e-05]
[1733943468546,0.85282768,100370.0,100360.0,8.6e-05]
[1733943468782,1.07510158,100370.0,100360.0,8.6e-05]
[1733943469001,1.09527203,100370.0,100360.0,8.6e-05]
[1733943470662,0.85673849,100370.0,100360.0,8.6e-05]
[1733943470876,0.77683849,100370.0,100360.0,8.6e-05]
[1733943471092,0.5990148,100370.0,100360.0,8.6e-05]
[1733943471282,0.46565046,100370.0,100360.0,8.6e-05]
[1733943471521,0.3767409,100370.0,100360.0,8.6e-05]
[1733943472007,0.3677409,100370.0,100360.0,8.6e-05]
[1733943472252,0.46165046,100370.0,100360.0,8.6e-05]
[1733943472498,0.58480906,100370.0,100360.0,8.6e-05]
[1733943473221,0.60780906,100370.0,100360.0,8.6e-05]
[1733943473452,0.7411734,100370.0,100360.0,8.6e-05]
[1733943473683,0.91399709,100370.0,100360.0,8.6e-05]
[1733943473928,1.14145666,100370.0,100360.0,8.6e-05]
[1733943474628,0.91899709,100370.0,100360.0,8.6e-05]
[1733943475087,0.7411734,100370.0,100360.0,8.6e-05]
[1733943476819,0.7408036,100370.0,100360.0,8.6e-05]
[1733943477979,0.7408036,100370.0,100350.0,0.00524185]
[1733943478209,0.20239415,100360.0,100350.0,0.00540699]
[1733943478439,0.199282,100360.0,100350.0,0.00540699]
[1733943479518,0.205282,100360.0,100350.0,0.00540699]
[1733943480914,0.208282,100360.0,100350.0,0.08512699]
[1733943483270,0.009,100360.0,100350.0,0.16902349]
[1733943483378,0.009,100360.0,100350.0,0.31713194]
[1733943483606,0.009,100360.0,100350.0,0.31613544]
[1733943483828,0.009,100360.0,100350.0,0.61613544]
[1733943484040,0.006,100360.0,100350.0,0.76613544]
[1733943484279,0.000172,100380.0,100370.0,0.0816]
[1733943484553,0.000172,100380.0,100370.0,0.161305]
[1733943485253,0.000172,100380.0,100370.0,0.16230114]
[1733943485929,0.002172,100380.0,100370.0,0.16230114]
[1733943486569,0.002172,100380.0,100370.0,0.26260959]
[1733943486780,0.003172,100380.0,100370.0,0.26161345]
[1733943487428,0.003172,100380.0,100370.0,0.56161345]
[1733943487679,0.003172,100380.0,100370.0,0.60751345]
[1733943489105,0.002172,100380.0,100370.0,0.60751345]
[1733943489335,0.001172,100380.0,100370.0,0.60751345]
[1733943489816,0.000172,100380.0,100370.0,0.60751345]
[1733943490530,0.001172,100380.0,100370.0,0.60851345]
[1733943491119,0.000172,100380.0,100370.0,0.75751345]
[1733943491361,0.000172,100380.0,100370.0,0.75851345]
[1733943491362,0.001172,100380.0,100370.0,0.75851345]
[1733943502754,0.001172,100380.0,100370.0,0.45851345]
[1733943502977,0.001172,100380.0,100370.0,0.71261345]
[1733943509314,0.001172,100380.0,100370.0,0.33101345]
[1733943510926,0.001172,100380.0,100370.0,0.080705]
[1733943511161,0.124072,100380.0,100370.0,0.001]
[1733943511413,0.124072,100380.0,100370.0,0.080705]
[1733943511414,0.323314,100380.0,100370.0,0.080705]
[1733943511867,0.124072,100380.0,100370.0,0.080705]
[1733943512088,0.123072,100380.0,100370.0,0.079705]
[1733943512311,0.126072,100380.0,100370.0,0.079705]
[1733943512558,0.14138817,100380.0,100370.0,0.079705]
[1733943513502,0.13938817,100380.0,100370.0,0.079705]
[1733943513726,0.14038817,100380.0,100370.0,0.079705]
[1733943513983,0.14138817,100380.0,100370.0,0.079705]
[1733943514426,0.14138817,100380.0,100360.0,0.159414]
[1733943514427,0.44094862,100380.0,100360.0,0.159414]
[1733943514644,0.64020062,100380.0,100360.0,0.239123]
[1733943515377,0.43994862,100380.0,100360.0,0.159414]
[1733943515595,0.24169662,100380.0,100370.0,0.079705]
[1733943516488,0.23969662,100380.0,100370.0,0.079705]
[1733943516713,0.24069662,100380.0,100370.0,0.079705]
[1733943516934,0.23869662,100380.0,100370.0,0.079705]
[1733943517183,0.13838817,100380.0,100370.0,0.079705]
[1733943517424,0.01748817,100380.0,100370.0,0.079705]
[1733943517647,0.01848817,100380.0,100370.0,0.079705]
[1733943518114,0.01548817,100380.0,100370.0,0.079705]
[1733943518337,0.01548817,100380.0,100370.0,0.080705]
[1733943518558,0.03848817,100380.0,100370.0,0.080705]
[1733943518788,0.01548817,100380.0,100370.0,0.23170121]
[1733943519006,0.01548817,100380.0,100370.0,0.33101345]
[1733943519478,0.01548817,100380.0,100370.0,0.33001345]
[1733943519916,0.01748817,100380.0,100370.0,0.33001345]
[1733943520139,0.01848817,100380.0,100370.0,0.33001345]
[1733943520369,0.01848817,100380.0,100370.0,0.33101345]
[1733943520644,0.01748817,100380.0,100370.0,0.33101345]
[1733943520861,0.01672031,100380.0,100370.0,0.33101345]
[1733943521303,0.01472031,100380.0,100370.0,0.33001345]
[1733943521530,0.0196793,100390.0,100370.0,0.64041845]
[1733943521751,0.0196793,100390.0,100380.0,0.00099607]
[1733943522016,0.1477095,100400.0,100390.0,0.079689]
[1733943522473,0.16310115,100400.0,100390.0,0.079689]
[1733943523169,0.06250115,100400.0,100390.0,0.079689]
[1733943523396,0.06266532,100400.0,100390.0,0.079689]
[1733943523626,0.06866532,100400.0,100390.0,0.080685]
[1733943524107,0.02506532,100400.0,100390.0,0.079689]
[1733943524319,0.02506532,100400.0,100390.0,0.08068499]
[1733943524555,0.02206532,100400.0,100390.0,0.08068499]
[1733943525698,0.01606532,100400.0,100390.0,0.08068499]
[1733943526148,0.01606532,100400.0,100390.0,0.08168499]
[1733943526605,0.01606532,100400.0,100390.0,0.080689]
[1733943528777,0.03555976,100400.0,100390.0,0.079689]
[1733943529174,0.00367367,100400.0,100390.0,0.079689]
[1733943529401,0.1136747,100400.0,100390.0,0.079689]
[1733943529620,0.1136747,100400.0,100390.0,0.080689]
[1733943529841,0.1136747,100400.0,100390.0,0.079689]
[1733943529842,0.24793025,100400.0,100390.0,0.079689]
[1733943530069,0.24893025,100400.0,100390.0,0.079689]
[1733943530294,0.24993025,100400.0,100390.0,0.079689]
[1733943530737,0.25493025,100400.0,100390.0,0.079689]
[1733943531996,0.24693025,100400.0,100390.0,0.079689]
[1733943532191,0.25193025,100400.0,100390.0,0.079689]
[1733943532628,0.25493025,100400.0,100390.0,0.079689]
[1733943532860,0.25793025,100400.0,100390.0,0.079689]
[1733943533089,0.1239763,100400.0,100390.0,0.079689]
[1733943533333,0.03140675,100400.0,100390.0,0.33099345]
[1733943533588,0.03140675,100400.0,100390.0,0.40589745]
[1733943534509,0.01167367,100400.0,100390.0,0.40589745]
[1733943534977,0.00367367,100400.0,100390.0,0.40589745]
[1733943535205,0.00067367,100400.0,100390.0,0.40689745]
[1733943537967,0.00067367,100400.0,100390.0,0.75419745]
[1733943538202,6.7e-07,100400.0,100390.0,0.75419745]
[1733943544383,0.00017247,100400.0,100390.0,0.75419745]
[1733943546409,0.00017247,100400.0,100390.0,0.70689745]
[1733943549576,0.00017247,100400.0,100390.0,0.40689745]
[1733943550054,0.00017247,100400.0,100390.0,0.33099745]
[1733943551246,0.00017247,100400.0,100390.0,0.48099745]
[1733943554893,0.00017247,100400.0,100390.0,0.75599745]
[1733943555126,0.00017247,100400.0,100390.0,1.00474395]
[1733943556513,0.00017247,100400.0,100390.0,1.00382985]
[1733943556948,0.00117247,100400.0,100390.0,1.00782985]
[1733943557174,0.00117247,100400.0,100390.0,1.00582985]
[1733943557429,0.00117247,100400.0,100390.0,0.96082985]
[1733943557430,0.00217247,100400.0,100390.0,0.96082985]
[1733943557690,0.00217247,100400.0,100390.0,0.18608335]
[1733943558164,0.00117247,100400.0,100390.0,0.18408335]
[1733943558415,0.00017247,100400.0,100390.0,0.18008335]
[1733943558924,0.00017247,100400.0,100390.0,0.18407926]
[1733943559667,0.00017247,100400.0,100390.0,0.33407926]
[1733943559896,0.00117247,100400.0,100390.0,0.33608335]
[1733943560439,0.00017247,100400.0,100390.0,0.33108335]
[1733943560675,0.00017247,100400.0,100390.0,0.33308335]
[1733943563309,0.01389082,100400.0,100390.0,0.33308335]
[1733943564696,0.01389082,100400.0,100390.0,0.31582614]
[1733943571804,0.00017247,100400.0,100390.0,0.74152614]
[1733943572991,4.7e-07,100400.0,100390.0,1.07541436]
[1733943573216,4.7e-07,100410.0,100400.0,0.607181]
[1733943573551,4.7e-07,100410.0,100400.0,0.8416964]
[1733943573676,4.7e-07,100410.0,100400.0,1.30519177]
[1733943573925,0.29963707,100460.0,100450.0,0.079641]
[1733943574160,0.16593483,100460.0,100450.0,0.079641]
[1733943574384,0.16648593,100460.0,100450.0,0.079641]
[1733943575072,0.18948593,100460.0,100450.0,0.079641]
[1733943575303,0.20379559,100460.0,100450.0,0.079641]
[1733943575542,0.11466076,100460.0,100450.0,0.079641]
[1733943576005,0.023,100450.0,100440.0,0.309287]
[1733943576264,0.023,100450.0,100440.0,0.079642]
[1733943576508,0.52794107,100450.0,100430.0,0.159304]
[1733943576963,0.0719,100440.0,100430.0,0.159304]
[1733943578917,0.0719,100440.0,100430.0,0.079651]
[1733943579178,0.0749,100440.0,100430.0,0.079651]
[1733943579405,0.0750718,100440.0,100430.0,0.079651]
[1733943579920,0.1002,100430.0,100420.0,0.159322]
[1733943582102,0.1002,100430.0,100420.0,0.162322]
[1733943582809,0.1002,100430.0,100420.0,0.082661]
[1733943584051,0.11420449,100430.0,100420.0,0.082661]
[1733943589210,0.11420449,100430.0,100420.0,0.003]
[1733943589451,0.83656651,100430.0,100420.0,0.003]
[1733943589695,0.97037003,100430.0,100420.0,0.003]
[1733943589942,0.83656651,100430.0,100420.0,0.003]
[1733943590201,0.97039904,100430.0,100420.0,0.003]
[1733943590420,0.97039904,100430.0,100420.0,0.002]
[1733943590898,0.97057084,100430.0,100420.0,0.002]
[1733943591382,0.97057084,100430.0,100400.0,0.23903]
[1733943591629,0.97057084,100430.0,100410.0,0.079673]
[1733943591630,0.023,100420.0,100410.0,0.079673]
[1733943592352,0.11221647,100420.0,100410.0,0.079673]
[1733943592849,0.026,100420.0,100410.0,0.079673]
[1733943593078,0.026,100420.0,100400.0,0.23903]
[1733943593079,0.225165,100420.0,100400.0,0.23903]
[1733943594774,0.222165,100420.0,100400.0,0.23903]
[1733943595236,0.226165,100420.0,100400.0,0.23903]
[1733943595713,0.225165,100420.0,100400.0,0.23903]
[1733943595944,0.225165,100420.0,100400.0,0.159353]
[1733943595945,0.027,100420.0,100400.0,0.159353]
[1733943596170,0.027,100420.0,100410.0,0.079673]
[1733943597811,0.024,100420.0,100400.0,0.159353]
[1733943598035,0.024,100420.0,100410.0,0.079673]
[1733943598267,0.026,100420.0,100410.0,0.079673]
[1733943598492,0.027,100420.0,100410.0,0.079673]
[1733943598940,0.226163,100420.0,100400.0,0.159353]
[1733943599210,0.51454408,100420.0,100400.0,0.239031]
[1733943599433,0.31537308,100420.0,100400.0,0.239031]
[1733943599882,0.08921008,100420.0,100410.0,0.079673]
[1733943600081,1.43511432,100430.0,100410.0,0.079673]
[1733943600344,0.09232015,100420.0,100410.0,0.079673]
[1733943600596,1.43511432,100430.0,100410.0,0.079673]
[1733943600824,0.00311005,100420.0,100410.0,0.079673]
[1733943601092,0.73730309,100430.0,100410.0,0.079673]
[1733943601288,0.23718586,100430.0,100420.0,0.079665]
[1733943601584,0.10338012,100430.0,100420.0,0.079665]
[1733943601836,0.01417629,100430.0,100420.0,0.079665]
[1733943602089,0.02117629,100430.0,100420.0,0.079665]
[1733943602537,0.02417629,100430.0,100420.0,0.079665]
[1733943602992,0.04817629,100430.0,100420.0,0.079665]
[1733943605443,0.02517629,100430.0,100420.0,0.08066072]
[1733943605679,0.01517629,100430.0,100420.0,0.08066072]
[1733943605908,0.01417629,100430.0,100420.0,0.08066072]
[1733943606140,0.01517629,100430.0,100420.0,0.079665]
[1733943607077,0.01717629,100430.0,100420.0,0.079665]
[1733943607306,0.01717629,100430.0,100420.0,0.33096913]
[1733943607534,0.01717629,100430.0,100420.0,0.56147345]
[1733943607807,0.0031718,100430.0,100420.0,0.56147345]
[1733943608030,0.0031718,100430.0,100420.0,0.75657345]
[1733943608271,0.0011718,100430.0,100420.0,0.60657345]
[1733943608470,0.0001718,100430.0,100420.0,0.75657345]
[1733943608738,0.0001718,100430.0,100420.0,0.75957345]
[1733943612497,8e-07,100430.0,100420.0,1.00825375]
[1733943613496,8e-07,100430.0,100420.0,1.00525375]
[1733943613715,0.0010008,100430.0,100420.0,1.01425375]
[1733943614193,0.0010008,100430.0,100420.0,1.02820537]
[1733943616192,0.0010008,100430.0,100420.0,0.76557345]
[1733943616664,0.0010008,100430.0,100420.0,0.61557345]
[1733943616901,0.0010008,100430.0,100420.0,0.76557345]
[1733943617899,0.0010008,100430.0,100420.0,0.61557345]
[1733943618134,0.0010008,100430.0,100420.0,0.76557345]
[1733943619334,0.0010008,100430.0,100420.0,0.61557345]
[1733943619595,0.0010008,100430.0,100420.0,0.76557345]
[1733943620102,0.0010008,100430.0,100420.0,0.42047345]
[1733943620348,0.0010008,100430.0,100420.0,0.088665]
[1733943620572,0.40435225,100430.0,100420.0,0.009]
[1733943620800,0.45255225,100430.0,100420.0,0.009]
[1733943621529,0.67526091,100430.0,100420.0,0.009]
[1733943621768,0.85342784,100430.0,100420.0,0.009]
[1733943622244,0.86670624,100430.0,100420.0,0.009]
[1733943622468,0.68845414,100430.0,100420.0,0.006]
[1733943622713,0.55676507,100430.0,100410.0,0.1594279]
[1733943622942,0.75592107,100430.0,100410.0,0.1594279]
[1733943623172,0.95508207,100430.0,100410.0,0.0797549]
[1733943623428,0.222163,100420.0,100410.0,0.0797549]
[1733943624152,0.222163,100420.0,100410.0,8.59e-05]
[1733943624656,0.222163,100420.0,100410.0,0.0010859]
[1733943624893,0.023,100420.0,100410.0,0.0010859]
[1733943625116,0.023,100420.0,100410.0,0.0807589]
[1733943625855,0.023,100420.0,100410.0,0.0797589]
[1733943626104,0.024,100420.0,100410.0,0.0797589]
[1733943626342,0.003,100420.0,100410.0,0.2307547]
[1733943626586,0.003,100420.0,100410.0,0.33006735]
[1733943627262,0.002,100420.0,100410.0,0.33006735]
[1733943627728,0.01308757,100430.0,100410.0,0.68550935]
[1733943627958,0.01308757,100430.0,100420.0,0.4090691]
[1733943628187,0.01308757,100430.0,100420.0,0.40807345]
[1733943629453,0.01408757,100430.0,100420.0,0.41707345]
[1733943630437,0.0010008,100430.0,100420.0,0.56707345]
[1733943630686,0.0010008,100430.0,100420.0,0.71707345]
[1733943631651,0.0010008,100430.0,100420.0,0.56707345]
[1733943634078,0.0010008,100430.0,100420.0,0.96575215]
[1733943634344,8e-07,100430.0,100420.0,0.96575215]
[1733943637334,8e-07,100430.0,100420.0,0.81575215]
[1733943637563,8e-07,100430.0,100420.0,0.71707345]
[1733943637789,8e-07,100430.0,100420.0,0.71715935]
[1733943638018,0.0001726,100430.0,100420.0,0.56715935]
[1733943638716,0.0001726,100430.0,100420.0,0.71715935]
[1733943639192,0.0001726,100430.0,100420.0,0.18905935]
[1733943639439,0.0001726,100430.0,100420.0,0.34005495]
[1733943639684,0.0001726,100430.0,100420.0,0.33905935]
[1733943640867,0.0001726,100430.0,100420.0,0.48905935]
[1733943641817,0.0001726,100430.0,100420.0,0.96903975]
[1733943645302,0.0001726,100430.0,100420.0,0.96903975]
[1733943646746,6e-07,100430.0,100420.0,0.96903975]
[1733943646978,4e-07,100440.0,100430.0,0.709557]
[1733943647220,6.6e-07,100440.0,100430.0,0.80986545]